[Event "Titled Tuesday Blitz May 24 Early 2022"]
[White "Warchol, Kamil"]
[Black "Cherniaiev, Tykhon"]
[WhiteFideId "21858241"]
[BlackFideId "14182360"]
[WhiteElo "1951"]
[BlackElo "2289"]
[Result "0-1"]
[Round "01"]
[TimeControl "180+1"]
[Date "2022.05.25"]
[WhiteClock "0:00:15"]
[BlackClock "0:00:09"]

1. e4 {[%clk 0:02:58]}  c5 {[%clk 0:02:59]} 2. Nf3 {[%clk 0:02:55]}  e6 {[%clk 0:02:58]} 3. d4 {[%clk 0:02:53]}  cxd4 {[%clk 0:02:59]} 4. Nxd4 {[%clk 0:02:45]}  a6 {[%clk 0:02:57]} 5. c4 {[%clk 0:02:44]}  Nf6 {[%clk 0:02:57]} 6. Nc3 {[%clk 0:02:43]}  Qc7 {[%clk 0:02:57]} 7. f4 {[%clk 0:02:42]}  d6 {[%clk 0:02:56]} 8. Bd3 {[%clk 0:02:40]}  Nc6 {[%clk 0:02:56]} 9. Nc2 {[%clk 0:02:39]}  Be7 {[%clk 0:02:55]} 10. Be3 {[%clk 0:02:39]}  O-O {[%clk 0:02:56]} 11. O-O {[%clk 0:02:37]}  Re8 {[%clk 0:02:56]} 12. Rc1 {[%clk 0:02:36]}  Bd7 {[%clk 0:02:55]} 13. b4 {[%clk 0:02:35]}  Rac8 {[%clk 0:02:54]} 14. Qf3 {[%clk 0:02:33]}  Qb8 {[%clk 0:02:40]} 15. a3 {[%clk 0:02:29]}  e5 {[%clk 0:02:33]} 16. f5 {[%clk 0:02:19]}  Kh8 {[%clk 0:02:32]} 17. h3 {[%clk 0:02:17]}  b5 {[%clk 0:02:28]} 18. Nd5 {[%clk 0:02:02]}  bxc4 {[%clk 0:02:26]} 19. Bxc4 {[%clk 0:02:00]}  Nxd5 {[%clk 0:01:51]} 20. Bxd5 {[%clk 0:01:49]}  a5 {[%clk 0:01:42]} 21. Bxf7 {[%clk 0:01:42]}  Rf8 {[%clk 0:01:41]} 22. Bd5 {[%clk 0:01:41]}  axb4 {[%clk 0:01:40]} 23. Rb1 {[%clk 0:01:36]}  Bf6 {[%clk 0:01:05]} 24. Nxb4 {[%clk 0:01:25]}  Nd4 {[%clk 0:01:03]} 25. Qf2 {[%clk 0:01:23]}  Qa7 {[%clk 0:01:02]} 26. Ra1 {[%clk 0:01:14]}  Rc3 {[%clk 0:01:01]} 27. a4 {[%clk 0:01:00]}  Ne2+ {[%clk 0:00:47]} 28. Qxe2 {[%clk 0:00:51]}  Rxe3 {[%clk 0:00:47]} 29. Qf2 {[%clk 0:00:51]}  Bd8 {[%clk 0:00:37]} 30. Kh1 {[%clk 0:00:45]}  Bb6 {[%clk 0:00:36]} 31. Qh4 {[%clk 0:00:43]}  Rf6 {[%clk 0:00:25]} 32. Be6 {[%clk 0:00:37]}  Rh6 {[%clk 0:00:18]} 33. Qe7 {[%clk 0:00:29]}  Bxe6 {[%clk 0:00:13]} 34. fxe6 {[%clk 0:00:23]}  Qxe7 {[%clk 0:00:12]} 35. Nd5 {[%clk 0:00:19]}  Qe8 {[%clk 0:00:11]} 36. e7 {[%clk 0:00:15]}  Rf6 {[%clk 0:00:09]} 37. Nxf6 {[%clk 0:00:12]}  gxf6 {[%clk 0:00:10]} 38. Rxf6 {[%clk 0:00:13]}  Qxe7 {[%clk 0:00:10]} 39. Raf1 {[%clk 0:00:13]}  Kg7 {[%clk 0:00:11]} 40. R6f5 {[%clk 0:00:13]}  Rg3 {[%clk 0:00:11]} 41. a5 {[%clk 0:00:13]}  Bxa5 {[%clk 0:00:11]} 42. Kh2 {[%clk 0:00:14]}  Rg6 {[%clk 0:00:10]} 43. R5f3 {[%clk 0:00:13]}  Bb6 {[%clk 0:00:09]} 44. R1f2 {[%clk 0:00:14]}  Bxf2 {[%clk 0:00:09]} 45. Rxf2 {[%clk 0:00:15]}  Qg5 {[%clk 0:00:09]} 46. Rf7+ {[%clk 0:00:15]}  Kxf7 {[%clk 0:00:09]} 0-1


[Site "https://www.chess.com"]

[Event "Titled Tuesday Blitz May 24 Early 2022"]
[White "Yeletsky, Ivan"]
[Black "Perez Rodriguez, Jennifer"]
[WhiteFideId "24180327"]
[BlackFideId "3507831"]
[WhiteElo "2319"]
[BlackElo "2170"]
[Result "1-0"]
[Round "01"]
[TimeControl "180+1"]
[Date "2022.05.25"]
[WhiteClock "0:01:46"]
[BlackClock "0:01:19"]

1. e4 {[%clk 0:02:17]}  e5 {[%clk 0:02:58]} 2. Bb5 {[%clk 0:02:15]}  Nf6 {[%clk 0:02:55]} 3. d4 {[%clk 0:02:14]}  exd4 {[%clk 0:02:50]} 4. e5 {[%clk 0:02:14]}  Qe7 {[%clk 0:02:44]} 5. Qe2 {[%clk 0:02:14]}  Nd5 {[%clk 0:02:38]} 6. Nf3 {[%clk 0:02:14]}  Nc6 {[%clk 0:02:28]} 7. O-O {[%clk 0:02:04]}  Qc5 {[%clk 0:02:21]} 8. c3 {[%clk 0:02:00]}  dxc3 {[%clk 0:02:18]} 9. bxc3 {[%clk 0:02:00]}  Be7 {[%clk 0:02:15]} 10. c4 {[%clk 0:01:56]}  Ndb4 {[%clk 0:02:02]} 11. Be3 {[%clk 0:01:55]}  O-O {[%clk 0:01:43]} 12. Bxc5 {[%clk 0:01:54]}  Bxc5 {[%clk 0:01:44]} 13. Nc3 {[%clk 0:01:54]}  Nd4 {[%clk 0:01:42]} 14. Qe4 {[%clk 0:01:52]}  Nbc2 {[%clk 0:01:39]} 15. Nxd4 {[%clk 0:01:51]}  Nxd4 {[%clk 0:01:38]} 16. Na4 {[%clk 0:01:51]}  Nxb5 {[%clk 0:01:32]} 17. Nxc5 {[%clk 0:01:49]}  d6 {[%clk 0:01:25]} 18. cxb5 {[%clk 0:01:45]}  dxc5 {[%clk 0:01:25]} 19. Rac1 {[%clk 0:01:46]}  Be6 {[%clk 0:01:19]} 20. Rxc5 {[%clk 0:01:46]} 1-0


[Site "https://www.chess.com"]

[Event "Titled Tuesday Blitz May 24 Early 2022"]
[White "Yuan, Qingyu"]
[Black "Golizadeh, Asghar"]
[WhiteFideId "8609772"]
[BlackFideId "12505269"]
[WhiteElo "2359"]
[BlackElo "2403"]
[Result "1-0"]
[Round "01"]
[TimeControl "180+1"]
[Date "2022.05.24"]
[WhiteClock "0:00:11"]
[BlackClock "0:00:21"]

1. e4 {[%clk 0:03:00]}  c5 {[%clk 0:02:59]} 2. Nf3 {[%clk 0:03:01]}  g6 {[%clk 0:03:00]} 3. Bc4 {[%clk 0:02:59]}  Bg7 {[%clk 0:03:00]} 4. O-O {[%clk 0:03:00]}  e6 {[%clk 0:03:00]} 5. c3 {[%clk 0:02:57]}  Ne7 {[%clk 0:03:00]} 6. d4 {[%clk 0:02:47]}  cxd4 {[%clk 0:02:58]} 7. Nxd4 {[%clk 0:02:47]}  O-O {[%clk 0:02:54]} 8. Bg5 {[%clk 0:02:42]}  h6 {[%clk 0:02:50]} 9. Bh4 {[%clk 0:02:42]}  d5 {[%clk 0:02:41]} 10. exd5 {[%clk 0:02:40]}  exd5 {[%clk 0:02:41]} 11. Bb3 {[%clk 0:02:32]}  Nbc6 {[%clk 0:02:36]} 12. Re1 {[%clk 0:02:19]}  g5 {[%clk 0:02:33]} 13. Nxc6 {[%clk 0:02:13]}  Nxc6 {[%clk 0:02:30]} 14. Bg3 {[%clk 0:02:13]}  d4 {[%clk 0:02:31]} 15. Ba4 {[%clk 0:02:02]}  Bd7 {[%clk 0:02:12]} 16. Bc2 {[%clk 0:01:53]}  Be6 {[%clk 0:02:05]} 17. Qd3 {[%clk 0:01:50]}  Re8 {[%clk 0:01:57]} 18. Nd2 {[%clk 0:01:29]}  f5 {[%clk 0:01:50]} 19. Rxe6 {[%clk 0:01:25]}  Rxe6 {[%clk 0:01:49]} 20. Bb3 {[%clk 0:01:25]}  Qf6 {[%clk 0:01:36]} 21. Re1 {[%clk 0:01:15]}  Re8 {[%clk 0:01:35]} 22. cxd4 {[%clk 0:00:44]}  Nxd4 {[%clk 0:01:28]} 23. Bxe6+ {[%clk 0:00:30]}  Rxe6 {[%clk 0:01:25]} 24. Qc4 {[%clk 0:00:20]}  Kh7 {[%clk 0:01:22]} 25. Rxe6 {[%clk 0:00:20]}  Nxe6 {[%clk 0:01:07]} 26. Bd6 {[%clk 0:00:13]}  b5 {[%clk 0:00:52]} 27. Qxb5 {[%clk 0:00:10]}  Nd4 {[%clk 0:00:53]} 28. Qd5 {[%clk 0:00:08]}  Nc2 {[%clk 0:00:31]} 29. h3 {[%clk 0:00:08]}  Kg6 {[%clk 0:00:31]} 30. Nc4 {[%clk 0:00:07]}  Nd4 {[%clk 0:00:29]} 31. Be5 {[%clk 0:00:07]}  Qe6 {[%clk 0:00:19]} 32. Qxd4 {[%clk 0:00:07]}  Bxe5 {[%clk 0:00:19]} 33. Nxe5+ {[%clk 0:00:08]}  Kh5 {[%clk 0:00:19]} 34. g4+ {[%clk 0:00:07]}  fxg4 {[%clk 0:00:18]} 35. Qxg4+ {[%clk 0:00:08]}  Qxg4+ {[%clk 0:00:19]} 36. hxg4+ {[%clk 0:00:09]}  Kh4 {[%clk 0:00:19]} 37. Kg2 {[%clk 0:00:10]}  a5 {[%clk 0:00:20]} 38. f3 {[%clk 0:00:10]}  a4 {[%clk 0:00:21]} 39. Ng6# {[%clk 0:00:11]} 1-0


[Site "https://www.chess.com"]

[Event "Titled Tuesday Blitz May 24 Early 2022"]
[White "Zemlyanskii, Ivan"]
[Black "Sovetbekova, Nurai"]
[WhiteFideId "24249971"]
[BlackFideId "13801910"]
[WhiteElo "1815"]
[BlackElo "1660"]
[Result "1-0"]
[Round "01"]
[TimeControl "180+1"]
[Date "2022.05.25"]
[WhiteClock "0:00:34"]
[BlackClock "0:00:10"]

1. d4 {[%clk 0:02:51]}  Nf6 {[%clk 0:02:59]} 2. c4 {[%clk 0:02:50]}  g6 {[%clk 0:02:59]} 3. Nc3 {[%clk 0:02:50]}  d5 {[%clk 0:03:00]} 4. Nf3 {[%clk 0:02:50]}  Bg7 {[%clk 0:02:59]} 5. h4 {[%clk 0:02:48]}  O-O {[%clk 0:02:43]} 6. h5 {[%clk 0:02:42]}  Nxh5 {[%clk 0:02:39]} 7. cxd5 {[%clk 0:02:39]}  c6 {[%clk 0:02:28]} 8. dxc6 {[%clk 0:02:34]}  Nxc6 {[%clk 0:02:28]} 9. e3 {[%clk 0:02:35]}  Bg4 {[%clk 0:02:23]} 10. Be2 {[%clk 0:02:34]}  Nf6 {[%clk 0:02:17]} 11. d5 {[%clk 0:02:29]}  Nb4 {[%clk 0:01:52]} 12. e4 {[%clk 0:02:17]}  Rc8 {[%clk 0:01:44]} 13. a3 {[%clk 0:01:56]}  Rxc3 {[%clk 0:01:08]} 14. axb4 {[%clk 0:01:19]}  Nxe4 {[%clk 0:00:51]} 15. bxc3 {[%clk 0:01:12]}  Bxc3+ {[%clk 0:00:50]} 16. Nd2 {[%clk 0:01:05]}  Bxe2 {[%clk 0:00:38]} 17. Kxe2 {[%clk 0:01:05]}  Qxd5 {[%clk 0:00:30]} 18. Ra5 {[%clk 0:00:54]}  Qc6 {[%clk 0:00:23]} 19. Nxe4 {[%clk 0:00:53]}  Qxe4+ {[%clk 0:00:23]} 20. Be3 {[%clk 0:00:52]}  Bxb4 {[%clk 0:00:20]} 21. Rd5 {[%clk 0:00:43]}  Qxg2 {[%clk 0:00:17]} 22. Rg1 {[%clk 0:00:35]}  Qe4 {[%clk 0:00:15]} 23. Rd4 {[%clk 0:00:34]}  Qe6 {[%clk 0:00:10]} 24. Rxb4 {[%clk 0:00:33]}  f5 {[%clk 0:00:10]} 25. Qb3 {[%clk 0:00:33]}  Qxb3 {[%clk 0:00:10]} 26. Rxb3 {[%clk 0:00:34]} 1-0


[Site "https://www.chess.com"]

[Event "Titled Tuesday Blitz May 24 Early 2022"]
[White "Zia, Tahsin Tajwar"]
[Black "Matinian, Nikita"]
[WhiteFideId "10211888"]
[BlackFideId "24129100"]
[WhiteElo "1800"]
[BlackElo "2422"]
[Result "1/2-1/2"]
[Round "01"]
[TimeControl "180+1"]
[Date "2022.05.25"]
[WhiteClock "0:00:05"]
[BlackClock "0:00:03"]

1. d4 {[%clk 0:02:59]}  Nf6 {[%clk 0:02:56]} 2. Bg5 {[%clk 0:02:58]}  d5 {[%clk 0:02:55]} 3. e3 {[%clk 0:02:57]}  Bf5 {[%clk 0:02:53]} 4. c4 {[%clk 0:02:44]}  e6 {[%clk 0:02:52]} 5. Nc3 {[%clk 0:02:44]}  Bb4 {[%clk 0:02:51]} 6. Qb3 {[%clk 0:02:42]}  Nc6 {[%clk 0:02:51]} 7. Nf3 {[%clk 0:02:33]}  h6 {[%clk 0:02:48]} 8. Bxf6 {[%clk 0:02:27]}  Qxf6 {[%clk 0:02:49]} 9. Ne5 {[%clk 0:02:27]}  Bxc3+ {[%clk 0:02:44]} 10. Qxc3 {[%clk 0:02:26]}  Nxe5 {[%clk 0:02:42]} 11. dxe5 {[%clk 0:02:27]}  Qd8 {[%clk 0:02:39]} 12. cxd5 {[%clk 0:02:01]}  exd5 {[%clk 0:02:39]} 13. Bd3 {[%clk 0:01:56]}  Bxd3 {[%clk 0:02:39]} 14. Qxd3 {[%clk 0:01:57]}  O-O {[%clk 0:02:40]} 15. O-O {[%clk 0:01:54]}  Re8 {[%clk 0:02:40]} 16. f4 {[%clk 0:01:51]}  c6 {[%clk 0:02:41]} 17. e4 {[%clk 0:01:49]}  Qb6+ {[%clk 0:02:39]} 18. Kh1 {[%clk 0:01:48]}  Rad8 {[%clk 0:02:40]} 19. exd5 {[%clk 0:01:48]}  Rxd5 {[%clk 0:02:40]} 20. Qc2 {[%clk 0:01:46]}  Red8 {[%clk 0:02:39]} 21. Rad1 {[%clk 0:01:45]}  Qe3 {[%clk 0:02:23]} 22. Rde1 {[%clk 0:01:34]}  Qd2 {[%clk 0:02:19]} 23. Qb3 {[%clk 0:01:31]}  Rb5 {[%clk 0:02:18]} 24. Qh3 {[%clk 0:01:27]}  Rxb2 {[%clk 0:02:16]} 25. e6 {[%clk 0:01:27]}  fxe6 {[%clk 0:02:16]} 26. Qxe6+ {[%clk 0:01:24]}  Kh8 {[%clk 0:02:16]} 27. Qg6 {[%clk 0:01:24]}  Rf8 {[%clk 0:01:53]} 28. Re8 {[%clk 0:01:13]}  Qb4 {[%clk 0:00:27]} 29. f5 {[%clk 0:00:58]}  Rxe8 {[%clk 0:00:26]} 30. Qxe8+ {[%clk 0:00:55]}  Kh7 {[%clk 0:00:27]} 31. Qg6+ {[%clk 0:00:55]}  Kg8 {[%clk 0:00:22]} 32. f6 {[%clk 0:00:26]}  Qf8 {[%clk 0:00:21]} 33. f7+ {[%clk 0:00:24]}  Kh8 {[%clk 0:00:21]} 34. h3 {[%clk 0:00:14]}  Re2 {[%clk 0:00:18]} 35. a4 {[%clk 0:00:09]}  Re5 {[%clk 0:00:15]} 36. a5 {[%clk 0:00:07]}  a6 {[%clk 0:00:07]} 37. Qg3 {[%clk 0:00:04]}  Re6 {[%clk 0:00:04]} 38. Qb3 {[%clk 0:00:03]}  Re7 {[%clk 0:00:03]} 39. Qc4 {[%clk 0:00:02]}  Kh7 {[%clk 0:00:02]} 40. Qd3+ {[%clk 0:00:02]}  g6 {[%clk 0:00:02]} 41. Qc4 {[%clk 0:00:02]}  Kg7 {[%clk 0:00:02]} 42. Qd4+ {[%clk 0:00:03]}  Kh7 {[%clk 0:00:03]} 43. Qc4 {[%clk 0:00:04]}  Kg7 {[%clk 0:00:03]} 44. Qd4+ {[%clk 0:00:04]}  Kh7 {[%clk 0:00:03]} 45. Qc4 {[%clk 0:00:05]} 1/2-1/2


[Site "https://www.chess.com"]

[Event "Titled Tuesday Blitz May 24 Early 2022"]
[White "Aakanksha Hagawane"]
[Black "Maghsoodloo, Parham"]
[WhiteFideId "25014510"]
[BlackFideId "12539929"]
[WhiteElo "1971"]
[BlackElo "2630"]
[Result "0-1"]
[Round "02"]
[TimeControl "180+1"]
[Date "2022.05.25"]
[WhiteClock "0:00:54"]
[BlackClock "0:02:12"]

1. d4 {[%clk 0:03:00]}  Nf6 {[%clk 0:02:59]} 2. Nf3 {[%clk 0:02:59]}  g6 {[%clk 0:02:56]} 3. e3 {[%clk 0:02:59]}  Bg7 {[%clk 0:02:55]} 4. Bd3 {[%clk 0:02:59]}  O-O {[%clk 0:02:55]} 5. O-O {[%clk 0:02:58]}  d5 {[%clk 0:02:52]} 6. b3 {[%clk 0:02:57]}  c5 {[%clk 0:02:51]} 7. Bb2 {[%clk 0:02:56]}  b6 {[%clk 0:02:50]} 8. Nbd2 {[%clk 0:02:56]}  Bb7 {[%clk 0:02:49]} 9. Ne5 {[%clk 0:02:55]}  Nc6 {[%clk 0:02:48]} 10. f4 {[%clk 0:02:53]}  Rc8 {[%clk 0:02:45]} 11. a3 {[%clk 0:02:30]}  e6 {[%clk 0:02:40]} 12. Qe2 {[%clk 0:02:22]}  Ne7 {[%clk 0:02:37]} 13. Rad1 {[%clk 0:01:58]}  Nf5 {[%clk 0:02:30]} 14. g4 {[%clk 0:01:41]}  Nd6 {[%clk 0:02:30]} 15. g5 {[%clk 0:01:37]}  Nfe4 {[%clk 0:02:27]} 16. Bxe4 {[%clk 0:01:33]}  dxe4 {[%clk 0:02:27]} 17. dxc5 {[%clk 0:01:25]}  Rxc5 {[%clk 0:02:27]} 18. b4 {[%clk 0:01:11]}  Rxc2 {[%clk 0:02:25]} 19. Bd4 {[%clk 0:01:10]}  Qc8 {[%clk 0:02:21]} 20. Qg4 {[%clk 0:00:58]}  Nf5 {[%clk 0:02:15]} 21. Ba1 {[%clk 0:00:54]}  Nxe3 {[%clk 0:02:12]} 0-1


[Site "https://www.chess.com"]

[Event "Titled Tuesday Blitz May 24 Early 2022"]
[White "Agasarov, Benik"]
[Black "Svane, Rasmus"]
[WhiteFideId "13314823"]
[BlackFideId "4657101"]
[WhiteElo "2632"]
[BlackElo "2674"]
[Result "0-1"]
[Round "02"]
[TimeControl "180+1"]
[Date "2022.05.24"]
[WhiteClock "0:00:18"]
[BlackClock "0:00:48"]

1. d4 {[%clk 0:03:00]}  Nf6 {[%clk 0:03:00]} 2. c4 {[%clk 0:03:00]}  e6 {[%clk 0:03:00]} 3. Nc3 {[%clk 0:03:00]}  Bb4 {[%clk 0:03:01]} 4. Nf3 {[%clk 0:02:58]}  O-O {[%clk 0:03:00]} 5. Bg5 {[%clk 0:02:57]}  c5 {[%clk 0:02:59]} 6. e3 {[%clk 0:02:53]}  cxd4 {[%clk 0:02:59]} 7. exd4 {[%clk 0:02:54]}  d5 {[%clk 0:02:59]} 8. a3 {[%clk 0:02:52]}  Bxc3+ {[%clk 0:02:56]} 9. bxc3 {[%clk 0:02:51]}  h6 {[%clk 0:02:57]} 10. Bh4 {[%clk 0:02:44]}  Qa5 {[%clk 0:02:37]} 11. Rc1 {[%clk 0:02:28]}  Nbd7 {[%clk 0:02:37]} 12. Bd3 {[%clk 0:02:24]}  dxc4 {[%clk 0:02:34]} 13. Bxc4 {[%clk 0:02:23]}  b6 {[%clk 0:02:34]} 14. O-O {[%clk 0:02:21]}  Ba6 {[%clk 0:02:35]} 15. Bxa6 {[%clk 0:02:19]}  Qxa6 {[%clk 0:02:36]} 16. Qb3 {[%clk 0:02:15]}  Rfc8 {[%clk 0:02:29]} 17. Rfe1 {[%clk 0:02:09]}  Qc4 {[%clk 0:02:27]} 18. Qxc4 {[%clk 0:02:04]}  Rxc4 {[%clk 0:02:28]} 19. Nd2 {[%clk 0:02:04]}  Ra4 {[%clk 0:02:25]} 20. Ra1 {[%clk 0:02:00]}  b5 {[%clk 0:02:26]} 21. Reb1 {[%clk 0:01:56]}  a6 {[%clk 0:02:26]} 22. Rb4 {[%clk 0:01:56]}  Rxb4 {[%clk 0:02:19]} 23. axb4 {[%clk 0:01:54]}  Nd5 {[%clk 0:02:19]} 24. Ra3 {[%clk 0:01:47]}  N7b6 {[%clk 0:02:19]} 25. Bg3 {[%clk 0:01:45]}  Na4 {[%clk 0:02:10]} 26. c4 {[%clk 0:01:25]}  Nxb4 {[%clk 0:02:09]} 27. cxb5 {[%clk 0:01:26]}  axb5 {[%clk 0:02:08]} 28. Rb3 {[%clk 0:01:26]}  Nc6 {[%clk 0:01:57]} 29. Rxb5 {[%clk 0:01:24]}  Nxd4 {[%clk 0:01:56]} 30. Rb8+ {[%clk 0:01:19]}  Rxb8 {[%clk 0:01:52]} 31. Bxb8 {[%clk 0:01:20]}  Nb6 {[%clk 0:01:43]} 32. Ba7 {[%clk 0:01:18]}  Ne2+ {[%clk 0:01:42]} 33. Kf1 {[%clk 0:01:18]}  Nc8 {[%clk 0:01:42]} 34. Kxe2 {[%clk 0:01:12]}  Nxa7 {[%clk 0:01:43]} 35. f4 {[%clk 0:01:12]}  Nc6 {[%clk 0:01:39]} 36. Ke3 {[%clk 0:01:10]}  Kf8 {[%clk 0:01:40]} 37. g4 {[%clk 0:01:08]}  Ke7 {[%clk 0:01:40]} 38. Nf3 {[%clk 0:01:07]}  f5 {[%clk 0:01:24]} 39. h3 {[%clk 0:01:01]}  Kf6 {[%clk 0:01:23]} 40. g5+ {[%clk 0:00:53]}  hxg5 {[%clk 0:01:19]} 41. Nxg5 {[%clk 0:00:53]}  e5 {[%clk 0:01:13]} 42. Nh7+ {[%clk 0:00:50]}  Kg6 {[%clk 0:01:08]} 43. Nf8+ {[%clk 0:00:44]}  Kf7 {[%clk 0:01:07]} 44. Nd7 {[%clk 0:00:35]}  e4 {[%clk 0:01:04]} 45. h4 {[%clk 0:00:36]}  Ke6 {[%clk 0:00:57]} 46. Nf8+ {[%clk 0:00:30]}  Ke7 {[%clk 0:00:57]} 47. Nh7 {[%clk 0:00:27]}  Nd8 {[%clk 0:00:52]} 48. Ng5 {[%clk 0:00:26]}  Ne6 {[%clk 0:00:52]} 49. Nh3 {[%clk 0:00:27]}  Nc7 {[%clk 0:00:49]} 50. Kd4 {[%clk 0:00:26]}  Kd6 {[%clk 0:00:50]} 51. Ng5 {[%clk 0:00:25]}  Ne6+ {[%clk 0:00:50]} 52. Ke3 {[%clk 0:00:17]}  Nxg5 {[%clk 0:00:50]} 53. fxg5 {[%clk 0:00:17]}  Ke5 {[%clk 0:00:46]} 54. h5 {[%clk 0:00:17]}  f4+ {[%clk 0:00:46]} 55. Ke2 {[%clk 0:00:18]}  Kf5 {[%clk 0:00:47]} 56. h6 {[%clk 0:00:18]}  gxh6 {[%clk 0:00:48]} 57. gxh6 {[%clk 0:00:18]}  Kg6 {[%clk 0:00:48]} 0-1


[Site "https://www.chess.com"]

[Event "Titled Tuesday Blitz May 24 Early 2022"]
[White "Aggelis, Nikolaos"]
[Black "Yeletsky, Ivan"]
[WhiteFideId "4213220"]
[BlackFideId "24180327"]
[WhiteElo "2154"]
[BlackElo "2319"]
[Result "0-1"]
[Round "02"]
[TimeControl "180+1"]
[Date "2022.05.25"]
[WhiteClock "0:00:32"]
[BlackClock "0:00:07"]

1. d4 {[%clk 0:03:00]}  d6 {[%clk 0:02:56]} 2. g3 {[%clk 0:03:00]}  e5 {[%clk 0:02:56]} 3. dxe5 {[%clk 0:02:59]}  dxe5 {[%clk 0:02:56]} 4. Qxd8+ {[%clk 0:03:00]}  Kxd8 {[%clk 0:02:57]} 5. e4 {[%clk 0:03:00]}  c6 {[%clk 0:02:54]} 6. a4 {[%clk 0:02:59]}  a5 {[%clk 0:02:45]} 7. Bc4 {[%clk 0:02:59]}  f6 {[%clk 0:02:45]} 8. Be3 {[%clk 0:02:58]}  Nd7 {[%clk 0:02:43]} 9. Ne2 {[%clk 0:02:50]}  Bc5 {[%clk 0:02:43]} 10. Kd2 {[%clk 0:02:45]}  Kc7 {[%clk 0:02:29]} 11. Nc1 {[%clk 0:02:42]}  h5 {[%clk 0:02:16]} 12. Nd3 {[%clk 0:02:42]}  Bxe3+ {[%clk 0:02:16]} 13. Kxe3 {[%clk 0:02:43]}  h4 {[%clk 0:02:16]} 14. Na3 {[%clk 0:02:37]}  Ne7 {[%clk 0:01:55]} 15. Rad1 {[%clk 0:02:32]}  Ng6 {[%clk 0:01:10]} 16. f3 {[%clk 0:02:30]}  Ngf8 {[%clk 0:01:07]} 17. Bb3 {[%clk 0:02:24]}  g5 {[%clk 0:00:49]} 18. Nc4 {[%clk 0:02:12]}  Ng6 {[%clk 0:00:49]} 19. f4 {[%clk 0:01:28]}  Nb6 {[%clk 0:00:43]} 20. Nd6 {[%clk 0:01:25]}  exf4+ {[%clk 0:00:40]} 21. gxf4 {[%clk 0:01:25]}  Kxd6 {[%clk 0:00:33]} 22. Ne5+ {[%clk 0:01:25]}  Nd5+ {[%clk 0:00:33]} 23. exd5 {[%clk 0:01:24]}  fxe5 {[%clk 0:00:33]} 24. dxc6+ {[%clk 0:01:23]}  Kxc6 {[%clk 0:00:32]} 25. Bd5+ {[%clk 0:01:12]}  Kc7 {[%clk 0:00:32]} 26. fxg5 {[%clk 0:01:13]}  Bg4 {[%clk 0:00:30]} 27. Bf3 {[%clk 0:01:12]}  Bxf3 {[%clk 0:00:30]} 28. Kxf3 {[%clk 0:01:13]}  Raf8+ {[%clk 0:00:29]} 29. Ke3 {[%clk 0:01:13]}  Rd8 {[%clk 0:00:26]} 30. Rhf1 {[%clk 0:01:13]}  Rxd1 {[%clk 0:00:25]} 31. Rxd1 {[%clk 0:01:14]}  Rf8 {[%clk 0:00:24]} 32. b3 {[%clk 0:01:06]}  b6 {[%clk 0:00:24]} 33. Rd5 {[%clk 0:01:01]}  Rf1 {[%clk 0:00:22]} 34. Ke4 {[%clk 0:00:56]}  Re1+ {[%clk 0:00:19]} 35. Kf3 {[%clk 0:00:53]}  Kc6 {[%clk 0:00:14]} 36. Rd8 {[%clk 0:00:52]}  Nf4 {[%clk 0:00:14]} 37. Rg8 {[%clk 0:00:48]}  Kd5 {[%clk 0:00:11]} 38. g6 {[%clk 0:00:48]}  Ke6 {[%clk 0:00:10]} 39. Rb8 {[%clk 0:00:45]}  Nxg6 {[%clk 0:00:10]} 40. Rxb6+ {[%clk 0:00:46]}  Kf5 {[%clk 0:00:10]} 41. Rb5 {[%clk 0:00:46]}  Rh1 {[%clk 0:00:08]} 42. Kg2 {[%clk 0:00:45]}  Rc1 {[%clk 0:00:09]} 43. c4 {[%clk 0:00:42]}  Nf4+ {[%clk 0:00:07]} 44. Kf3 {[%clk 0:00:42]}  Rc3+ {[%clk 0:00:08]} 45. Kf2 {[%clk 0:00:41]}  Ke4 {[%clk 0:00:09]} 46. Rxa5 {[%clk 0:00:41]}  Rc2+ {[%clk 0:00:10]} 47. Ke1 {[%clk 0:00:39]}  Rxh2 {[%clk 0:00:09]} 48. Ra8 {[%clk 0:00:38]}  h3 {[%clk 0:00:10]} 49. Rh8 {[%clk 0:00:37]}  Rb2 {[%clk 0:00:10]} 50. a5 {[%clk 0:00:37]}  Rxb3 {[%clk 0:00:08]} 51. a6 {[%clk 0:00:37]}  Ra3 {[%clk 0:00:09]} 52. Rh6 {[%clk 0:00:36]}  Ke3 {[%clk 0:00:08]} 53. Kd1 {[%clk 0:00:35]}  Ra1+ {[%clk 0:00:07]} 54. Kc2 {[%clk 0:00:35]}  h2 {[%clk 0:00:08]} 55. a7 {[%clk 0:00:31]}  Rxa7 {[%clk 0:00:07]} 56. Rxh2 {[%clk 0:00:32]}  Ra2+ {[%clk 0:00:07]} 0-1


[Site "https://www.chess.com"]